Workbook

Sheet Menu
A3: Datum | B3: 2015-04-09 | D3: Menu Angaben wie folgt machen: | H3: Kg | I3: 0.25
H4: Lt | I4: 1.25
A5: Vorspeise | B5: Soba | Tofu | Sesam | D5: alle weiteren Angaben weitere ausschreiben | H5: EL | I5: Esslöffel
H6: TL | I6: Kaffeelöffel
A7: Suppe | B7: Spargel | Ricotta | Crêpes | H7: Bund | I7: 1
H8: Stk | I8: Stück
A9: Hauptgang | B9: Poulet | Ingwer | Zitrone | H9: Pä | I9: Päckli
A10: Beilage1 | B10: Blaue St. Galler | Rosmarin
A11: Beilage2
A13: Dessert | B13: Époisse | Crème brûlée | Gewürzkruste
A15: Diverses
A17: Menu von Tisch | B17: B
A19: Personenzahl | B19: 4

Sheet Vorspeise
E1: Chochete vom | F1: =SUM(Menu!B3) -> 2015-04-09 | I1: Original Rezept
A2: =Menu!B5 -> Soba | Tofu | Sesam | E2: Rezept für | F2: =Menu!B19 -> 4 | I2: 4 | J2: Personen | L2: Menu Angaben wie folgt machen:
A3: Menge | B3: Einheit | C3: Artikel (Gewicht alles ca. Angaben) | D3: Bemerkungen | E3: Einkaufspreis | F3: Betrag | I3: Originalrezept | J3: pro Person
A4: =ROUND(SUM(J4*$F$2),2) -> 0 | C4: Soba-Nudelsalat | F4: =SUM(E4*A4) -> 0 | J4: =I4/$I$2 -> 0 | L4: Kg | M4: 0.25
A5: 0.25 | B5: Kg | C5: Soba Nudeln (Buchweizennudeln) | F5: =SUM(E5*A5) -> 0 | I5: 0.25 | J5: =I5/$I$2 -> 0.0625 | L5: Lt | M5: 1.25
A6: 0.15 | B6: Kg | C6: Bohnen extra fein | F6: 0 | I6: 0.15 | J6: =I6/$I$2 -> 0.0375 | L6: EL | M6: Esslöffel
A7: 0.2 | B7: Kg | C7: Seidentofu | D7: zum Garnieren | F7: 0 | I7: 0.2 | J7: =I7/$I$2 -> 0.05 | L7: TL | M7: Kaffeelöffel
A8: 2 | B8: EL | C8: Schwarzer Sesam, geröstet | F8: 0 | I8: 2 | J8: =I8/$I$2 -> 0.5 | L8: Bund | M8: 1
A9: 0 | F9: 0 | J9: =I9/$I$2 -> 0 | L9: Stk | M9: Stück
A10: 0 | C10: Vinaigrette | F10: 0 | J10: 0 | L10: Pä | M10: Päckli
A11: 0.08 | B11: Lt | C11: Balsamicoessig | F11: 0 | I11: 0.075 | J11: 0.01875 | L11: alles weitere ausschreiben
A12: =ROUND(SUM(J12*$F$2),2) -> 0.03 | B12: Lt | C12: Sojasauce | F12: 0 | I12: 0.025 | J12: 0.00625
A13: 1 | B13: Stk | C13: grüne Chilli | D13: entkernt und fein gewürfelt | F13: 0 | I13: 1 | J13: 0.25
A14: 0.5 | B14: Stk | C14: Knoblauchzehe | D14: fein gehackt | F14: 0 | I14: 0.5 | J14: 0.125
A15: 2 | B15: TL | C15: Honig | F15: 0 | I15: 2 | J15: 0.5
A16: 1 | B16: Stk | C16: Limette | D16: abgeriebene Schale | F16: 0 | I16: 1 | J16: 0.25
A17: 1 | B17: TL | C17: Voatsiperifery-Pfeffer | D17: gemörsert | F17: 0 | I17: 1 | J17: 0.25
A18: 0.1 | B18: Lt | C18: Olivenöl | F18: 0 | I18: 0.1 | J18: 0.025
A19: 0.05 | B19: Lt | C19: Sesamöl | F19: 0 | I19: 0.05 | J19: =I19/$I$2 -> 0.0125
A20: 0 | C20: Kresse | F20: 0 | J20: 0
A21: Zubereitung
A22: Für den Nudelsalat die Buchweizennudeln bissfest kochen und kalt abschrecken.
A23: Die Bohnen im Salzwasser blanchieren (ca. 3-4 Minuten) und im Eiswasser abschrecken. Den Tofu in etwa 1/2 cm grosse Würfel schneiden.
A24: Für die Vinaigrette alle Zutaten mit dem Schneebesen verrühren.
A25: Soba-Nudeln, Bohnen und Tofu in eine Schüssel geben, mit der Vinaigrette marinieren und 10 Minuten ziehen lassen. Abschmecken und in tiefen Tellern anrichten. Mit schwarzem Sesam und Kresse bestreuen.

Sheet Suppe
E1: Chochete vom | F1: =SUM(Menu!B3) -> 2015-04-09 | I1: Original Rezept
A2: =Menu!B7 -> Spargel | Ricotta | Crêpes | E2: Rezept für | F2: =Menu!B19 -> 4 | I2: 4 | J2: Personen | L2: Menu Angaben wie folgt machen:
A3: Menge | B3: Einheit | C3: Artikel (Gewicht alles ca. Angaben) | D3: Bemerkungen | E3: Einkaufspreis | F3: Betrag | I3: Originalrezept | J3: pro Person
A4: =ROUND(SUM(J4*$F$2),2) -> 0 | C4: Suppe | F4: =SUM(E4*A4) -> 0 | J4: =I4/$I$2 -> 0 | L4: Kg | M4: 0.25
A5: 3 | B5: Stk | C5: Schalotten | D5: fein geschnitten | F5: 0 | I5: 3 | J5: 0.75 | L5: Lt | M5: 1.25
A6: 0.4 | B6: Kg | C6: Weisser Spargel | D6: geschält und in feine Scheiben geschnitten | F6: =SUM(E6*A6) -> 0 | I6: 0.4 | J6: 0.1 | L6: EL | M6: Esslöffel
A7: 0.05 | B7: Kg | C7: Butter | F7: =SUM(E7*A7) -> 0 | I7: 0.05 | J7: 0.0125 | L7: TL | M7: Kaffeelöffel
A8: 0.1 | B8: Lt | C8: Weisswein | F8: =SUM(E8*A8) -> 0 | I8: 0.1 | J8: 0.025 | L8: Bund | M8: 1
A9: 0.5 | B9: Lt | C9: Gemüsefond | F9: 0 | I9: 0.5 | J9: 0.125 | L9: Stk | M9: Stück
A10: 0.4 | B10: Lt | C10: Reismilch | F10: 0 | I10: 0.4 | J10: 0.1 | L10: Pä | M10: Päckli
A11: 1 | B11: EL | C11: Jasminblüten | D11: getrocknet, zum Garnieren | F11: 0 | I11: 1 | J11: 0.25 | L11: alles weitere ausschreiben
A12: 0 | C12: Ricotta-Flan | F12: 0 | J12: 0
A13: 0.2 | B13: Lt | C13: Rahm | F13: 0 | I13: 0.2 | J13: 0.05
A14: 0.09 | B14: Kg | C14: Ricotta | F14: 0 | I14: 0.09 | J14: 0.0225
A15: 1 | B15: Prise | C15: Kardamom | D15: gemahlen | F15: 0 | I15: 1 | J15: 0.25
A16: =ROUND(SUM(J16*$F$2),2) -> 2 | B16: Stk | C16: Eier | F16: 0 | I16: 2 | J16: 0.5
A17: 0 | C17: Reis-Crêpes | F17: =SUM(E17*A17) -> 0 | J17: =I17/$I$2 -> 0
A18: 2 | B18: Stk | C18: Eier | F18: 0 | I18: 2 | J18: 0.5
A19: 4 | B19: EL | C19: Reismehl | F19: 0 | I19: 4 | J19: 1
A20: 0.1 | B20: Lt | C20: Kokosmilch | F20: 0 | I20: 0.1 | J20: 0.025
A21: 0.5 | B21: TL | C21: Fischsauce | F21: 0 | I21: 0.5 | J21: 0.125
A22: 0.5 | B22: TL | C22: Sesamöl | F22: 0 | I22: 0.5 | J22: 0.125
A23: Zubereitung
A24: Für die Suppe Schalotten und Spargel in Butter andünsten. Mit dem Weisswein ablöschen. Gemüsefond und Reismilch dazugeben und 15 Minuten köcheln lassen. Anschliessend mixen und durch ein Sieb streichen.Mit Salz und Pfeffer abschmecken.
A25: Für den Ricotta-Flan alle Zutaten glatt rühren und in kleine, gebutterte Formen füllen. Die Förmchen in ein Wasserbad stellen und im Ofen bei 200 Grad Umluft 10 Minuten garen.
A26: Für die Reis-Crêpes alle Zutaten gut verrühren. Eine beschichtete Pfanne nicht zu stark erhitzen, wenig Öl beigeben und jeweils nur so viel Teig zugeben, dass der Boden dünn bedeckt ist. Nacheinander die Crêpes ausbacken und danach in dünne Streifen schneiden.
A27: Alle Beilagen in den Suppentellern anrichten und mit der Suppe übergiessen. Mit kleinen Jasminblüten und feinen Kräutern garnieren.

Sheet Hauptgang
E1: Chochete vom | F1: =SUM(Menu!B3) -> 2015-04-09 | I1: Original Rezept
A2: =Menu!B9 -> Poulet | Ingwer | Zitrone | E2: Rezept für | F2: =Menu!B19 -> 4 | I2: 4 | J2: Personen | L2: Menu Angaben wie folgt machen:
A3: Menge | B3: Einheit | C3: Artikel (Gewicht alles ca. Angaben) | D3: Bemerkungen | E3: Einkaufspreis | F3: Betrag | I3: Originalrezept | J3: pro Person
A4: =ROUND(SUM(J4*$F$2),2) -> 1 | B4: Stk | C4: Maispoularde oder Mistchratzerli | F4: =SUM(E4*A4) -> 0 | I4: 1 | J4: =I4/$I$2 -> 0.25 | L4: Kg | M4: 0.25
A5: =ROUND(SUM(J5*$F$2),2) -> 0 | F5: 0 | J5: 0 | L5: Lt | M5: 1.25
A6: =ROUND(SUM(J6*$F$2),2) -> 0 | C6: Zitronen-Ingwer-Butter | F6: 0 | J6: 0 | L6: EL | M6: Esslöffel
A7: 0.08 | B7: Kg | C7: Butter | D7: geschmolzen | F7: 0 | I7: 0.075 | J7: 0.01875 | L7: TL | M7: Kaffeelöffel
A8: 1.5 | B8: EL | C8: Ingwer | D8: geschält und gehackt | F8: 0 | I8: 1.5 | J8: 0.375 | L8: Bund | M8: 1
A9: 2 | B9: Stk | C9: Zitronen | D9: Zesten | F9: 0 | I9: 2 | J9: 0.5 | L9: Stk | M9: Stück
A10: =ROUND(SUM(J10*$F$2),2) -> 1 | B10: Stk | C10: Zitrone | D10: Saft | F10: 0 | I10: 1 | J10: 0.25 | L10: Pä | M10: Päckli
A11: =ROUND(SUM(J11*$F$2),2) -> 1 | B11: TL | C11: Zimtpulver | F11: 0 | I11: 1 | J11: 0.25 | L11: alles weitere ausschreiben
A12: 0.5 | B12: TL | C12: Kurmumapulver | F12: 0 | I12: 0.5 | J12: 0.125
A13: =ROUND(SUM(J13*$F$2),2) -> 1 | B13: Msp | C13: Cayennepfeffer | F13: 0 | I13: 1 | J13: 0.25
A14: 2 | B14: TL | C14: Fleur de Sel | F14: 0 | I14: 2 | J14: 0.5
A15: 0 | F15: 0 | J15: 0
A16: 1 | B16: Stk | C16: Zitrone | D16: in Scheiben geschnitten | F16: 0 | I16: 1 | J16: =I16/$I$2 -> 0.25
A17: 0 | F17: 0 | J17: 0
A18: 0 | F18: 0 | J18: 0
A19: 0 | F19: 0 | J19: 0
A20: 0 | F20: =SUM(E20*A20) -> 0 | J20: 0
A21: Zubereitung
A22: Den Ofen auf 165 Grad vorheizen.
A23: Für die Zitronen-Ingwer-Butter alle Zutaten vermischen und das Poulet damit einstreichen.
A24: Das Huhn im 165 Grad heissen Ofen 10 Minuten mit der Brustseite nach unten garen. Dann auf den Rücken drehen und weitere 35 Minuten garen. Dazwischen immer wieder mit der Butter bestreichen.
A25: 5 Minuten vor Garende die in Scheiben geschnittene Zitrone auflegen.

Sheet Beilage1
E1: Chochete vom | F1: =SUM(Menu!B3) -> 2015-04-09 | I1: Original Rezept
A2: =Menu!B10 -> Blaue St. Galler | Rosmarin | E2: Rezept für | F2: 4 | I2: 4 | J2: Personen | L2: Menu Angaben wie folgt machen:
A3: Menge | B3: Einheit | C3: Artikel (Gewicht alles ca. Angaben) | D3: Bemerkungen | E3: Einkaufspreis | F3: Betrag | I3: Originalrezept | J3: pro Person
A4: =ROUND(SUM(J4*$F$2),2) -> 12 | B4: Stk | C4: Blaue St. Galler Kartoffeln | F4: =SUM(E4*A4) -> 0 | I4: 12 | J4: =I4/$I$2 -> 3 | L4: Kg | M4: 0.25
A5: 4 | B5: Stk | C5: Rosmarinzweige | F5: 0 | I5: 4 | J5: 1 | L5: Lt | M5: 1.25
A6: 0 | F6: 0 | J6: 0 | L6: EL | M6: Esslöffel
A7: 0 | F7: 0 | J7: 0 | L7: TL | M7: Kaffeelöffel
A8: 0 | F8: 0 | J8: 0 | L8: Bund | M8: 1
A9: 0 | F9: 0 | J9: 0 | L9: Stk | M9: Stück
A10: 0 | F10: 0 | J10: 0 | L10: Pä | M10: Päckli
A11: 0 | F11: 0 | J11: 0 | L11: alles weitere ausschreiben
A12: 0 | F12: 0 | J12: 0
A13: 0 | F13: 0 | J13: 0
A14: 0 | F14: 0 | J14: 0
A15: 0 | F15: 0 | J15: 0
A16: 0 | F16: 0 | J16: 0
A17: 0 | F17: 0 | J17: 0
A18: 0 | F18: 0 | J18: 0
A19: 0 | F19: 0 | J19: 0
A20: 0 | F20: 0 | J20: 0
A21: Zubereitung
A22: Die Kartoffeln 15-20 Minuten kochen und danach mit den Rosmarinzweigen braten.

Sheet Dessert
E1: Chochete vom | F1: =SUM(Menu!B3) -> 2015-04-09 | I1: Original Rezept
A2: =Menu!B13 -> Époisse | Crème brûlée | Gewürzkruste | E2: Rezept für | F2: 4 | I2: 4 | J2: Personen | L2: Menu Angaben wie folgt machen:
A3: Menge | B3: Einheit | C3: Artikel (Gewicht alles ca. Angaben) | D3: Bemerkungen | E3: Einkaufspreis | F3: Betrag | I3: Originalrezept | J3: pro Person
A4: =ROUND(SUM(J4*$F$2),2) -> 0 | C4: Époisse-Crême brûlée | F4: =SUM(E4*A4) -> 0 | J4: =I4/$I$2 -> 0 | L4: Kg | M4: 0.25
A5: =ROUND(SUM(J5*$F$2),2) -> 0.19 | B5: Lt | C5: Rahm | F5: =SUM(E5*A5) -> 0 | I5: 0.19 | J5: 0.0475 | L5: Lt | M5: 1.25
A6: =ROUND(SUM(J6*$F$2),2) -> 0.07 | B6: Lt | C6: Milch | F6: 0 | I6: 0.07 | J6: 0.0175 | L6: EL | M6: Esslöffel
A7: 0.25 | B7: Kg | C7: Epoisse-Käse | F7: 0 | I7: 0.25 | J7: 0.0625 | L7: KL | M7: Kaffeelöffel
A8: 4 | B8: Blatt | C8: Gelatine | D8: in Eiswasser eingeweicht | F8: 0 | I8: 4 | J8: 1 | L8: Bund | M8: 1
A9: 1 | B9: Stk | C9: Ei | F9: 0 | I9: 1 | J9: 0.25 | L9: Stk | M9: Stück
A10: 0.04 | B10: Lt | C10: Weisswein | F10: 0 | I10: 0.04 | J10: 0.01 | L10: Pä | M10: Päckli
A11: 1 | B11: Prise | C11: Fleur de Sel | F11: 0 | I11: 1 | J11: 0.25 | L11: alles weitere ausschreiben
A12: 1 | B12: Prise | C12: Muskatblüte (Macis) | D12: gemahlen | F12: 0 | I12: 1 | J12: 0.25
A13: 0 | F13: 0 | J13: 0
A14: 0 | C14: Gewürzkruste | F14: 0 | J14: 0
A15: 0.05 | B15: Kg | C15: brauner Zucker | F15: 0 | I15: 0.05 | J15: 0.0125
A16: 0.5 | B16: TL | C16: Kardamom | D16: gemahlen | F16: 0 | I16: 0.5 | J16: 0.125
A17: 0.5 | B17: TL | C17: Zimt | D17: gemahlen | F17: 0 | I17: 0.5 | J17: 0.125
A18: 0.5 | B18: TL | C18: Sternanis | D18: gemahlen | F18: 0 | I18: 0.5 | J18: 0.125
A19: 1 | B19: Stk | C19: Vanilleschote | D19: ausgekratztes Mark | F19: 0 | I19: 1 | J19: 0.25
A20: 0.5 | B20: TL | C20: Szechuanpfeffer | D20: gemahlen | F20: 0 | I20: 0.5 | J20: 0.125
A21: Zubereitung
A22: Rahm und Milch aufkochen und den Käse darin schmelzen. Die ausgedrückte Gelatine darin auflösen und die restlichen Zutaten unterrühren. Nochmals kurz aufkochen und leicht eindicken lassen.
A23: Die Crème in kleine Schalen füllen und im Ofen bei 100 Grad 45 Minuten pochieren. Alternativ die Crème im Steamer bei 85 Grad Dampf für 36 Minuten pochieren. Eher etwas länger als zu kurz, die Crème soll fest werden.
A24: Für die Gewürzkruste den Zucker mit sämtlichen Gewürzen mischen und auf die Époisse-Crème streuen. Mit Bunsenbrenner goldbraun karamellisieren und sofort servieren.

Sheet Einkaufsliste
A1: Hobby-Küche Zug | C1: Einkaufsliste | D1: =Dessert!F1 -> 2015-04-09 | E1: ok
A2: Menge | B2: Einheit | C2: Artikel
A3: =Vorspeise!A2 -> Soba | Tofu | Sesam | D3: Bemerkungen
A4: =SUM(Vorspeise!A4) -> 0 | B4: =Vorspeise!B4 -> 0 | C4: =Vorspeise!C4 -> Soba-Nudelsalat | D4: =Vorspeise!D4 -> 0
A5: =SUM(Vorspeise!A5) -> 0.25 | B5: =Vorspeise!B5 -> Kg | C5: =Vorspeise!C5 -> Soba Nudeln (Buchweizennudeln) | D5: =Vorspeise!D5 -> 0
A6: =SUM(Vorspeise!A6) -> 0.15 | B6: =Vorspeise!B6 -> Kg | C6: =Vorspeise!C6 -> Bohnen extra fein | D6: =Vorspeise!D6 -> 0
A7: =SUM(Vorspeise!A7) -> 0.2 | B7: =Vorspeise!B7 -> Kg | C7: =Vorspeise!C7 -> Seidentofu | D7: =Vorspeise!D7 -> zum Garnieren
A8: =SUM(Vorspeise!A8) -> 2 | B8: =Vorspeise!B8 -> EL | C8: =Vorspeise!C8 -> Schwarzer Sesam, geröstet | D8: =Vorspeise!D8 -> 0
A9: =SUM(Vorspeise!A9) -> 0 | B9: =Vorspeise!B9 -> 0 | C9: =Vorspeise!C9 -> 0 | D9: =Vorspeise!D9 -> 0
A10: =SUM(Vorspeise!A10) -> 0 | B10: =Vorspeise!B10 -> 0 | C10: =Vorspeise!C10 -> Vinaigrette | D10: =Vorspeise!D10 -> 0
A11: =SUM(Vorspeise!A11) -> 0.08 | B11: =Vorspeise!B11 -> Lt | C11: =Vorspeise!C11 -> Balsamicoessig | D11: =Vorspeise!D11 -> 0
A12: =SUM(Vorspeise!A12) -> 0.03 | B12: =Vorspeise!B12 -> Lt | C12: =Vorspeise!C12 -> Sojasauce | D12: =Vorspeise!D12 -> 0
A13: =SUM(Vorspeise!A13) -> 1 | B13: =Vorspeise!B13 -> Stk | C13: =Vorspeise!C13 -> grüne Chilli | D13: =Vorspeise!D13 -> entkernt und fein gewürfelt
A14: =SUM(Vorspeise!A14) -> 0.5 | B14: =Vorspeise!B14 -> Stk | C14: =Vorspeise!C14 -> Knoblauchzehe | D14: =Vorspeise!D14 -> fein gehackt
A15: =SUM(Vorspeise!A15) -> 2 | B15: =Vorspeise!B15 -> TL | C15: =Vorspeise!C15 -> Honig | D15: =Vorspeise!D15 -> 0
A16: =SUM(Vorspeise!A16) -> 1 | B16: =Vorspeise!B16 -> Stk | C16: =Vorspeise!C16 -> Limette | D16: =Vorspeise!D16 -> abgeriebene Schale
A17: =SUM(Vorspeise!A17) -> 1 | B17: =Vorspeise!B17 -> TL | C17: =Vorspeise!C17 -> Voatsiperifery-Pfeffer | D17: =Vorspeise!D17 -> gemörsert
A18: =SUM(Vorspeise!A18) -> 0.1 | B18: =Vorspeise!B18 -> Lt | C18: =Vorspeise!C18 -> Olivenöl | D18: =Vorspeise!D18 -> 0
A19: =SUM(Vorspeise!A19) -> 0.05 | B19: =Vorspeise!B19 -> Lt | C19: =Vorspeise!C19 -> Sesamöl | D19: =Vorspeise!D19 -> 0
A20: =SUM(Vorspeise!A20) -> 0 | B20: =Vorspeise!B20 -> 0 | C20: =Vorspeise!C20 -> Kresse | D20: =Vorspeise!D20 -> 0
A21: =Suppe!A2 -> Spargel | Ricotta | Crêpes | D21: Bemerkungen
A22: =SUM(Suppe!A4) -> 0 | B22: =Suppe!B4 -> 0 | C22: =Suppe!C4 -> Suppe | D22: =Suppe!D4 -> 0
A23: =SUM(Suppe!A5) -> 3 | B23: =Suppe!B5 -> Stk | C23: =Suppe!C5 -> Schalotten | D23: =Suppe!D5 -> fein geschnitten
A24: =SUM(Suppe!A6) -> 0.4 | B24: =Suppe!B6 -> Kg | C24: =Suppe!C6 -> Weisser Spargel | D24: =Suppe!D6 -> geschält und in feine Scheiben geschnitten
A25: =SUM(Suppe!A7) -> 0.05 | B25: =Suppe!B7 -> Kg | C25: =Suppe!C7 -> Butter | D25: =Suppe!D7 -> 0
A26: =SUM(Suppe!A8) -> 0.1 | B26: =Suppe!B8 -> Lt | C26: =Suppe!C8 -> Weisswein | D26: =Suppe!D8 -> 0
A27: =SUM(Suppe!A9) -> 0.5 | B27: =Suppe!B9 -> Lt | C27: =Suppe!C9 -> Gemüsefond | D27: =Suppe!D9 -> 0
A28: =SUM(Suppe!A10) -> 0.4 | B28: =Suppe!B10 -> Lt | C28: =Suppe!C10 -> Reismilch | D28: =Suppe!D10 -> 0
A29: =SUM(Suppe!A11) -> 1 | B29: =Suppe!B11 -> EL | C29: =Suppe!C11 -> Jasminblüten | D29: =Suppe!D11 -> getrocknet, zum Garnieren
A30: =SUM(Suppe!A12) -> 0 | B30: =Suppe!B12 -> 0 | C30: =Suppe!C12 -> Ricotta-Flan | D30: =Suppe!D12 -> 0
A31: =SUM(Suppe!A13) -> 0.2 | B31: =Suppe!B13 -> Lt | C31: =Suppe!C13 -> Rahm | D31: =Suppe!D13 -> 0
A32: =SUM(Suppe!A14) -> 0.09 | B32: =Suppe!B14 -> Kg | C32: =Suppe!C14 -> Ricotta | D32: =Suppe!D14 -> 0
A33: =SUM(Suppe!A15) -> 1 | B33: =Suppe!B15 -> Prise | C33: =Suppe!C15 -> Kardamom | D33: =Suppe!D15 -> gemahlen
A34: =SUM(Suppe!A16) -> 2 | B34: =Suppe!B16 -> Stk | C34: =Suppe!C16 -> Eier | D34: =Suppe!D16 -> 0
A35: =SUM(Suppe!A19) -> 4 | B35: =Suppe!B19 -> EL | C35: =Suppe!C19 -> Reismehl | D35: =Suppe!D19 -> 0
A36: =SUM(Suppe!A20) -> 0.1 | B36: =Suppe!B20 -> Lt | C36: =Suppe!C20 -> Kokosmilch | D36: =Suppe!D20 -> 0
A37: =SUM(Suppe!A21) -> 0.5 | B37: =Suppe!B21 -> TL | C37: =Suppe!C21 -> Fischsauce | D37: =Suppe!D21 -> 0
A38: =SUM(Suppe!A22) -> 0.5 | B38: =Suppe!B22 -> TL | C38: =Suppe!C22 -> Sesamöl | D38: =Suppe!D22 -> 0
A39: =Hauptgang!A2 -> Poulet | Ingwer | Zitrone | D39: Bemerkungen
A40: =SUM(Hauptgang!A4) -> 1 | B40: =Hauptgang!B4 -> Stk | C40: =Hauptgang!C4 -> Maispoularde oder Mistchratzerli | D40: =Hauptgang!D4 -> 0
A41: =SUM(Hauptgang!A5) -> 0 | B41: =Hauptgang!B5 -> 0 | C41: =Hauptgang!C5 -> 0 | D41: =Hauptgang!D5 -> 0
A42: =SUM(Hauptgang!A6) -> 0 | B42: =Hauptgang!B6 -> 0 | C42: =Hauptgang!C6 -> Zitronen-Ingwer-Butter | D42: =Hauptgang!D6 -> 0
A43: =SUM(Hauptgang!A7) -> 0.08 | B43: =Hauptgang!B7 -> Kg | C43: =Hauptgang!C7 -> Butter | D43: =Hauptgang!D7 -> geschmolzen
A44: =SUM(Hauptgang!A8) -> 1.5 | B44: =Hauptgang!B8 -> EL | C44: =Hauptgang!C8 -> Ingwer | D44: =Hauptgang!D8 -> geschält und gehackt
A45: =SUM(Hauptgang!A9) -> 2 | B45: =Hauptgang!B9 -> Stk | C45: =Hauptgang!C9 -> Zitronen | D45: =Hauptgang!D9 -> Zesten
A46: =SUM(Hauptgang!A10) -> 1 | B46: =Hauptgang!B10 -> Stk | C46: =Hauptgang!C10 -> Zitrone | D46: =Hauptgang!D10 -> Saft
A47: =SUM(Hauptgang!A11) -> 1 | B47: =Hauptgang!B11 -> TL | C47: =Hauptgang!C11 -> Zimtpulver | D47: =Hauptgang!D11 -> 0
A48: =SUM(Hauptgang!A12) -> 0.5 | B48: =Hauptgang!B12 -> TL | C48: =Hauptgang!C12 -> Kurmumapulver | D48: =Hauptgang!D12 -> 0
A49: =SUM(Hauptgang!A13) -> 1 | B49: =Hauptgang!B13 -> Msp | C49: =Hauptgang!C13 -> Cayennepfeffer | D49: =Hauptgang!D13 -> 0
A50: =SUM(Hauptgang!A14) -> 2 | B50: =Hauptgang!B14 -> TL | C50: =Hauptgang!C14 -> Fleur de Sel | D50: =Hauptgang!D14 -> 0
A51: =SUM(Hauptgang!A15) -> 0 | B51: =Hauptgang!B15 -> 0 | C51: =Hauptgang!C15 -> 0 | D51: =Hauptgang!D15 -> 0
A52: =SUM(Hauptgang!A16) -> 1 | B52: =Hauptgang!B16 -> Stk | C52: =Hauptgang!C16 -> Zitrone | D52: =Hauptgang!D16 -> in Scheiben geschnitten
A53: =SUM(Hauptgang!A17) -> 0 | B53: =Hauptgang!B17 -> 0 | C53: =Hauptgang!C17 -> 0 | D53: =Hauptgang!D17 -> 0
A54: =SUM(Hauptgang!A18) -> 0 | B54: =Hauptgang!B18 -> 0 | C54: =Hauptgang!C18 -> 0 | D54: =Hauptgang!D18 -> 0
A55: =SUM(Hauptgang!A19) -> 0 | B55: =Hauptgang!B19 -> 0 | C55: =Hauptgang!C19 -> 0 | D55: =Hauptgang!D19 -> 0
A56: =SUM(Hauptgang!A20) -> 0 | B56: =Hauptgang!B20 -> 0 | C56: =Hauptgang!C20 -> 0 | D56: =Hauptgang!D20 -> 0
A57: =Beilage1!A2 -> Blaue St. Galler | Rosmarin | D57: Bemerkungen
A58: =Beilage1!A4 -> 12 | B58: =Beilage1!B4 -> Stk | C58: =Beilage1!C4 -> Blaue St. Galler Kartoffeln | D58: =Beilage1!D4 -> 0
A59: =Beilage1!A5 -> 4 | B59: =Beilage1!B5 -> Stk | C59: =Beilage1!C5 -> Rosmarinzweige | D59: =Beilage1!D5 -> 0
A60: =Beilage1!A6 -> 0 | B60: =Beilage1!B6 -> 0 | C60: =Beilage1!C6 -> 0 | D60: =Beilage1!D6 -> 0
A61: =Beilage1!A7 -> 0 | B61: =Beilage1!B7 -> 0 | C61: =Beilage1!C7 -> 0 | D61: =Beilage1!D7 -> 0
A62: =Beilage1!A8 -> 0 | B62: =Beilage1!B8 -> 0 | C62: =Beilage1!C8 -> 0 | D62: =Beilage1!D8 -> 0
A63: =Beilage1!A9 -> 0 | B63: =Beilage1!B9 -> 0 | C63: =Beilage1!C9 -> 0 | D63: =Beilage1!D9 -> 0
A64: =Beilage1!A10 -> 0 | B64: =Beilage1!B10 -> 0 | C64: =Beilage1!C10 -> 0 | D64: =Beilage1!D10 -> 0
A65: =Beilage1!A11 -> 0 | B65: =Beilage1!B11 -> 0 | C65: =Beilage1!C11 -> 0 | D65: =Beilage1!D11 -> 0
A66: =Beilage1!A12 -> 0 | B66: =Beilage1!B12 -> 0 | C66: =Beilage1!C12 -> 0 | D66: =Beilage1!D12 -> 0
A67: =Beilage1!A13 -> 0 | B67: =Beilage1!B13 -> 0 | C67: =Beilage1!C13 -> 0 | D67: =Beilage1!D13 -> 0
A68: =Beilage1!A14 -> 0 | B68: =Beilage1!B14 -> 0 | C68: =Beilage1!C14 -> 0 | D68: =Beilage1!D14 -> 0
A69: =Beilage1!A15 -> 0 | B69: =Beilage1!B15 -> 0 | C69: =Beilage1!C15 -> 0 | D69: =Beilage1!D15 -> 0
A70: =Beilage1!A16 -> 0 | B70: =Beilage1!B16 -> 0 | C70: =Beilage1!C16 -> 0 | D70: =Beilage1!D16 -> 0
A71: =Beilage1!A17 -> 0 | B71: =Beilage1!B17 -> 0 | C71: =Beilage1!C17 -> 0 | D71: =Beilage1!D17 -> 0
A72: =Beilage1!A18 -> 0 | B72: =Beilage1!B18 -> 0 | C72: =Beilage1!C18 -> 0 | D72: =Beilage1!D18 -> 0
A73: =Beilage1!A19 -> 0 | B73: =Beilage1!B19 -> 0 | C73: =Beilage1!C19 -> 0 | D73: =Beilage1!D19 -> 0
A74: =Beilage1!A20 -> 0 | B74: =Beilage1!B20 -> 0 | C74: =Beilage1!C20 -> 0 | D74: =Beilage1!D20 -> 0
A75: =Dessert!A2 -> Époisse | Crème brûlée | Gewürzkruste | D75: Bemerkungen
A76: =SUM(Dessert!A4) -> 0 | B76: =Dessert!B4 -> 0 | C76: =Dessert!C4 -> Époisse-Crême brûlée | D76: =Dessert!D4 -> 0
A77: =SUM(Dessert!A5) -> 0.19 | B77: =Dessert!B5 -> Lt | C77: =Dessert!C5 -> Rahm | D77: =Dessert!D5 -> 0
A78: =SUM(Dessert!A6) -> 0.07 | B78: =Dessert!B6 -> Lt | C78: =Dessert!C6 -> Milch | D78: =Dessert!D6 -> 0
A79: =SUM(Dessert!A7) -> 0.25 | B79: =Dessert!B7 -> Kg | C79: =Dessert!C7 -> Epoisse-Käse | D79: =Dessert!D7 -> 0
A80: =SUM(Dessert!A8) -> 4 | B80: =Dessert!B8 -> Blatt | C80: =Dessert!C8 -> Gelatine | D80: =Dessert!D8 -> in Eiswasser eingeweicht
A81: =SUM(Dessert!A9) -> 1 | B81: =Dessert!B9 -> Stk | C81: =Dessert!C9 -> Ei | D81: =Dessert!D9 -> 0
A82: =SUM(Dessert!A10) -> 0.04 | B82: =Dessert!B10 -> Lt | C82: =Dessert!C10 -> Weisswein | D82: =Dessert!D10 -> 0
A83: =SUM(Dessert!A11) -> 1 | B83: =Dessert!B11 -> Prise | C83: =Dessert!C11 -> Fleur de Sel | D83: =Dessert!D11 -> 0
A84: =SUM(Dessert!A12) -> 1 | B84: =Dessert!B12 -> Prise | C84: =Dessert!C12 -> Muskatblüte (Macis) | D84: =Dessert!D12 -> gemahlen
A85: =SUM(Dessert!A13) -> 0 | B85: =Dessert!B13 -> 0 | C85: =Dessert!C13 -> 0 | D85: =Dessert!D13 -> 0
A86: =SUM(Dessert!A14) -> 0 | B86: =Dessert!B14 -> 0 | C86: =Dessert!C14 -> Gewürzkruste | D86: =Dessert!D14 -> 0
A87: =SUM(Dessert!A15) -> 0.05 | B87: =Dessert!B15 -> Kg | C87: =Dessert!C15 -> brauner Zucker | D87: =Dessert!D15 -> 0
A88: =SUM(Dessert!A16) -> 0.5 | B88: =Dessert!B16 -> TL | C88: =Dessert!C16 -> Kardamom | D88: =Dessert!D16 -> gemahlen
A89: =SUM(Dessert!A17) -> 0.5 | B89: =Dessert!B17 -> TL | C89: =Dessert!C17 -> Zimt | D89: =Dessert!D17 -> gemahlen
A90: =SUM(Dessert!A18) -> 0.5 | B90: =Dessert!B18 -> TL | C90: =Dessert!C18 -> Sternanis | D90: =Dessert!D18 -> gemahlen
A91: =SUM(Dessert!A19) -> 1 | B91: =Dessert!B19 -> Stk | C91: =Dessert!C19 -> Vanilleschote | D91: =Dessert!D19 -> ausgekratztes Mark
A92: =SUM(Dessert!A20) -> 0.5 | B92: =Dessert!B20 -> TL | C92: =Dessert!C20 -> Szechuanpfeffer | D92: =Dessert!D20 -> gemahlen
